bitfinex-derivatives/quotes_BTCF0:USTF0_20240830
["timestamp","ask_amount","ask_price","bid_price","bid_amount"]
[1724981203325,0.447198,59234.0,59233.0,0.022]
[1724981207210,0.446198,59234.0,59233.0,0.015]
[1724981207723,0.085398,59234.0,59233.0,0.015]
[1724981207921,0.806998,59234.0,59233.0,0.015]
[1724981208618,0.805998,59234.0,59233.0,0.002]
[1724981208820,0.890396,59234.0,59232.0,2.1e-07]
[1724981209124,0.08443,59212.0,59209.0,0.23630793]
[1724981209327,0.3608,59210.0,59205.0,0.07198]
[1724981209625,0.3608,59210.0,59205.0,0.0711]
[1724981210133,0.3578,59210.0,59205.0,0.0711]
[1724981210323,0.3578,59210.0,59209.0,0.013]
[1724981210627,0.442232,59210.0,59209.0,0.013]
[1724981212117,0.444232,59210.0,59205.0,0.018]
[1724981212817,0.444232,59210.0,59209.0,0.011]
[1724981213125,0.444232,59210.0,59209.0,0.014]
[1724981213424,0.444232,59210.0,59209.0,0.003]
[1724981214021,0.46739545,59210.0,59209.0,0.003]
[1724981215017,0.46739545,59210.0,59209.0,0.016]
[1724981215412,1.57407545,59210.0,59209.0,0.013]
[1724981216018,0.97407545,59210.0,59209.0,0.013]
[1724981216219,1.57407545,59210.0,59209.0,0.013]
[1724981216427,1.57407545,59210.0,59209.0,0.015]
[1724981216725,0.97407545,59210.0,59209.0,0.012]
[1724981217025,1.57407545,59210.0,59209.0,0.012]
[1724981218024,1.86407545,59210.0,59209.0,0.012]
[1724981218218,1.57407545,59210.0,59209.0,0.012]
[1724981218420,1.86407545,59210.0,59209.0,0.012]
[1724981219125,1.86707545,59210.0,59209.0,0.01]
[1724981219324,1.86707545,59210.0,59200.0,0.23630793]
[1724981219325,0.08444,59205.0,59200.0,0.23630793]
[1724981219532,0.3608,59201.0,59200.0,0.23630793]
[1724981220122,0.3608,59201.0,59192.0,0.29]
[1724981220847,0.3608,59196.0,59190.0,0.23630793]
[1724981221247,0.3608,59196.0,59191.0,0.084459]
[1724981221750,0.3608,59196.0,59192.0,0.084458]
[1724981221943,0.3608,59196.0,59193.0,0.084456]
[1724981222143,0.3568,59196.0,59193.0,0.084456]
[1724981222639,0.3478,59196.0,59193.0,0.084456]
[1724981223041,0.3478,59196.0,59194.0,0.084455]
[1724981223245,0.3488,59196.0,59194.0,0.084455]
[1724981223457,0.3498,59196.0,59194.0,0.084455]
[1724981224350,0.3498,59196.0,59192.0,0.004]
[1724981224351,0.071456,59193.0,59192.0,0.004]
[1724981224741,1.539096,59193.0,59192.0,0.004]
[1724981224944,0.374473,59181.0,59180.0,0.0039]
[1724981225241,0.084482,59175.0,59167.0,0.0039]
[1724981225451,0.00025344,59186.0,59163.0,0.00088]
[1724981225452,0.084491,59169.0,59163.0,0.00088]
[1724981225648,0.29,59164.0,59154.0,0.00088]
[1724981225854,1.0116,59155.0,59148.0,0.0039]
[1724981226160,0.7308,59149.0,59138.0,0.02733547]
[1724981226353,0.3608,59140.0,59138.0,0.02343547]
[1724981226550,0.3608,59140.0,59128.0,0.3608]
[1724981226949,0.00025344,59145.0,59137.0,0.3608]
[1724981227151,0.00025344,59145.0,59143.0,0.445327]
[1724981227359,0.00025344,59145.0,59143.0,0.084527]
[1724981228454,0.00125344,59145.0,59143.0,0.084527]
[1724981229052,0.00125344,59145.0,59144.0,0.87724]
[1724981229253,0.00125344,59145.0,59144.0,0.95024]
[1724981229444,0.00225344,59145.0,59144.0,1.55024]
[1724981229754,0.00225344,59145.0,59144.0,0.073]
[1724981230451,0.00225344,59145.0,59144.0,1.54104]
[1724981230955,0.00225344,59145.0,59144.0,1.91104]
[1724981235656,0.00225344,59145.0,59144.0,1.31104]
[1724981235859,0.00225344,59145.0,59144.0,1.91104]
[1724981236955,4.4e-07,59145.0,59144.0,1.91104]
[1724981237154,4.4e-07,59145.0,59144.0,1.995566]
[1724981237748,4.4e-07,59145.0,59144.0,5.765566]
[1724981238350,4.4e-07,59145.0,59144.0,5.850092]
[1724981238547,0.0039,59155.0,59145.0,0.5072]
[1724981238758,0.0039,59161.0,59160.0,0.084503]
[1724981238956,0.3608,59162.0,59161.0,0.084502]
[1724981240257,0.3628,59162.0,59161.0,0.084502]
[1724981240647,0.3628,59162.0,59161.0,3.854502]
[1724981241753,0.3678,59162.0,59161.0,3.854502]
[1724981242452,0.3678,59162.0,59161.0,3.77]
[1724981242453,0.452301,59162.0,59161.0,3.77]
[1724981242657,0.452301,59162.0,59156.0,0.00025366]
[1724981242658,0.084502,59161.0,59156.0,0.00025366]
[1724981242861,0.445308,59157.0,59156.0,0.00025366]
[1724981243253,0.3608,59157.0,59156.0,0.00025366]
[1724981244156,0.3618,59157.0,59156.0,0.00025366]
[1724981244356,0.3618,59157.0,59156.0,0.08476266]
[1724981246349,0.001,59157.0,59156.0,0.08476266]
[1724981249056,0.20169347,59159.0,59156.0,0.08476266]
[1724981249360,0.11578846,59159.0,59156.0,0.00025366]
[1724981249556,0.084508,59157.0,59156.0,0.00025366]
[1724981251159,0.02244156,59159.0,59156.0,0.00025366]
[1724981251957,0.084508,59157.0,59156.0,0.00025366]
[1724981252258,0.001,59157.0,59156.0,0.00025366]
[1724981252866,0.001,59159.0,59156.0,0.00025366]
[1724981253270,0.3608,59160.0,59156.0,0.00025366]
[1724981253469,0.001,59157.0,59156.0,0.00025366]
[1724981253965,0.084506,59158.0,59156.0,0.00025366]
[1724981255462,0.001,59157.0,59156.0,0.00025366]
[1724981255867,0.001,59157.0,59156.0,0.08476266]
[1724981256165,0.001,59158.0,59156.0,0.08476266]
[1724981256357,0.001,59158.0,59157.0,0.084508]
[1724981256559,0.084508,59157.0,59156.0,0.00025366]
[1724981256760,0.677136,59157.0,59156.0,0.00025366]
[1724981256958,1.20532088,59157.0,59141.0,0.44533]
[1724981257174,0.3608,59147.0,59141.0,0.44533]
[1724981257468,0.3608,59142.0,59132.0,0.3608]
[1724981258658,0.00025366,59143.0,59132.0,0.3608]
[1724981258865,0.00025366,59143.0,59138.0,0.3608]
[1724981259068,0.00025366,59143.0,59140.0,0.084532]
[1724981259260,0.00025366,59143.0,59138.0,0.3608]
[1724981259261,0.00025366,59143.0,59141.0,0.08453]
[1724981259860,0.001,59142.0,59141.0,0.06353]
[1724981260265,0.001,59142.0,59134.0,0.37]
[1724981260662,0.00125366,59143.0,59137.0,0.084536]
[1724981260860,0.084533,59140.0,59134.0,0.084539]
[1724981261057,0.00125366,59143.0,59134.0,0.084539]
[1724981261461,0.001,59142.0,59134.0,0.084539]
[1724981261658,0.001,59142.0,59132.0,0.3608]
[1724981261859,0.3608,59136.0,59131.0,0.00025366]
[1724981262378,0.7308,59134.0,59119.0,0.0039]
[1724981262565,0.7308,59134.0,59112.0,0.3608]
[1724981262566,0.084571,59113.0,59105.0,0.084581]
[1724981262763,0.084578,59108.0,59098.0,0.3608]
[1724981263273,0.0726,59117.0,59105.0,0.3608]
[1724981263471,0.07285366,59117.0,59105.0,0.3608]
[1724981264064,0.001,59108.0,59106.0,0.084581]
[1724981264375,0.001,59108.0,59106.0,0.08458]
[1724981264673,0.001,59108.0,59107.0,0.3608]
[1724981264972,0.00125366,59117.0,59110.0,0.084574]
[1724981265181,0.00125366,59117.0,59112.0,0.3608]
[1724981265669,0.00125366,59117.0,59113.0,0.08457]
[1724981265864,0.00125366,59117.0,59115.0,0.084567]
[1724981266069,0.00125366,59117.0,59116.0,0.3608]
[1724981266461,0.00125366,59117.0,59116.0,1.46828]
[1724981266664,0.0713,59140.0,59116.0,1.53618]
[1724981266866,0.0713,59140.0,59134.0,0.3608]
[1724981267075,0.02210548,59140.0,59134.0,0.3608]
[1724981267274,0.084529,59143.0,59134.0,0.3608]
[1724981267571,0.084529,59143.0,59115.0,0.3608]
[1724981267572,0.7216,59135.0,59115.0,0.3608]
[1724981267777,0.3608,59126.0,59119.0,0.00025366]
[1724981267977,0.3608,59120.0,59119.0,0.00025366]
[1724981269572,0.0688,59125.0,59119.0,0.00025366]
[1724981270168,0.00025366,59131.0,59121.0,0.445359]
[1724981270377,0.0216327,59131.0,59121.0,0.445359]
[1724981270572,0.00025366,59131.0,59121.0,0.445359]
[1724981270771,0.00025366,59131.0,59121.0,0.3608]
[1724981270975,0.00025366,59131.0,59128.0,0.3608]
[1724981272284,0.00025366,59131.0,59127.0,0.08455]
[1724981272486,0.00025366,59131.0,59129.0,0.084547]
[1724981273175,0.00025366,59131.0,59126.0,0.3608]
[1724981273381,0.084555,59124.0,59119.0,0.00025366]
[1724981273692,0.3608,59130.0,59122.0,0.3608]
[1724981275081,0.3608,59130.0,59127.0,0.08455]
[1724981276075,0.00025366,59131.0,59129.0,0.3608]
[1724981276480,0.00025366,59131.0,59129.0,0.445347]
[1724981277079,0.005,59130.0,59124.0,0.084555]
[1724981277483,0.005,59130.0,59125.0,0.084553]
[1724981277683,0.005,59130.0,59127.0,0.08455]
[1724981277991,0.36805366,59131.0,59127.0,0.08455]
[1724981278381,0.00725366,59131.0,59127.0,0.08455]
[1724981278684,0.00025366,59131.0,59128.0,0.084549]
[1724981278878,0.005,59130.0,59128.0,0.084549]
[1724981279291,0.005,59130.0,59129.0,0.084548]
[1724981280274,0.00025366,59131.0,59129.0,0.084548]
[1724981280487,0.00525366,59131.0,59129.0,0.084548]
[1724981280881,0.00525366,59131.0,59130.0,0.084546]
[1724981281077,0.00025366,59131.0,59130.0,0.084546]
[1724981282082,0.00825366,59131.0,59130.0,0.084546]
[1724981288791,0.00825366,59131.0,59126.0,0.084552]
[1724981288992,0.7308,59127.0,59119.0,0.00025366]
[1724981289296,0.3608,59121.0,59119.0,0.00025366]
[1724981289996,0.0682,59126.0,59119.0,0.00025366]
[1724981290292,0.00148001,59127.0,59124.0,0.084555]
[1724981290493,0.10673618,59128.0,59124.0,0.084555]
[1724981290699,0.084549,59128.0,59124.0,0.084555]
[1724981291287,0.084549,59128.0,59125.0,0.084553]
[1724981291592,0.3608,59126.0,59119.0,0.00025366]
[1724981292091,0.3608,59124.0,59119.0,0.00025366]
[1724981292292,0.29,59127.0,59119.0,0.00025366]
[1724981292890,0.084554,59125.0,59121.0,0.084559]
[1724981294196,0.3608,59129.0,59124.0,0.084555]
[1724981294604,0.445348,59129.0,59124.0,0.084555]
[1724981294803,0.3608,59129.0,59119.0,0.00025366]
[1724981295195,0.3608,59124.0,59119.0,0.00025366]
[1724981295895,0.3608,59124.0,59120.0,0.084559]
[1724981296503,0.3608,59124.0,59119.0,0.00025366]
[1724981296699,0.3608,59124.0,59123.0,0.084556]
[1724981296997,0.002,59129.0,59119.0,0.00025366]
[1724981297199,0.36105366,59131.0,59126.0,0.084552]
[1724981297200,0.084547,59130.0,59126.0,0.084552]
[1724981297392,0.36105366,59131.0,59126.0,0.084552]
[1724981297592,0.36105366,59131.0,59119.0,0.00025366]
[1724981297593,0.084551,59127.0,59119.0,0.00025366]
[1724981297794,0.084551,59127.0,59124.0,0.084554]
[1724981298391,0.084553,59126.0,59120.0,0.084561]
[1724981298595,0.445356,59124.0,59120.0,0.084561]
[1724981299092,0.446356,59124.0,59120.0,0.084561]
[1724981299492,0.446356,59124.0,59122.0,0.084557]
[1724981299493,0.001,59124.0,59122.0,0.084557]
[1724981299902,0.084552,59126.0,59122.0,0.084557]
[1724981300102,0.75831863,59131.0,59122.0,0.084557]
[1724981300303,0.084554,59125.0,59122.0,0.084557]
[1724981301901,0.10604736,59125.0,59122.0,0.084557]
[1724981302402,0.3608,59124.0,59122.0,0.084557]
[1724981303408,0.07818765,59123.0,59122.0,0.084557]
[1724981303609,0.07818765,59123.0,59119.0,0.00025366]
[1724981303806,0.07818765,59122.0,59119.0,0.00025366]
[1724981304003,0.07818765,59121.0,59119.0,0.00025366]
[1724981304210,0.07818765,59120.0,59119.0,0.08481566]
[1724981307706,0.07818765,59120.0,59119.0,0.0763341]
[1724981308912,0.084557,59123.0,59118.0,0.3608]
[1724981309108,0.02149336,59125.0,59118.0,0.3608]
[1724981309308,0.084551,59127.0,59124.0,0.084554]
[1724981310020,0.10652205,59127.0,59123.0,0.3608]
[1724981310309,0.36105366,59131.0,59123.0,0.3608]
[1724981310515,0.36105366,59131.0,59130.0,0.084546]
[1724981311719,0.00025366,59131.0,59130.0,0.084546]
[1724981311929,0.02150143,59131.0,59130.0,0.084546]
[1724981312220,0.00025366,59131.0,59130.0,0.084546]
[1724981312920,0.00825366,59131.0,59130.0,0.084546]
[1724981315717,0.00825366,59131.0,59126.0,0.084552]
[1724981315921,0.084572,59112.0,59111.0,0.0039]
[1724981316118,0.80992,59112.0,59099.0,0.08459]
[1724981316423,0.3608,59106.0,59096.0,0.4299]
[1724981316612,0.15912,59105.0,59096.0,0.4299]
[1724981316812,0.15912,59104.0,59102.0,0.084585]
[1724981317013,0.735372,59112.0,59103.0,0.445385]
[1724981317316,0.25639178,59111.0,59103.0,0.445385]
[1724981317915,0.15912,59110.0,59103.0,0.445385]
[1724981318214,0.01269778,59111.0,59096.0,0.4299]
[1724981318410,0.3608,59106.0,59096.0,0.4299]
[1724981318607,0.3608,59106.0,59100.0,0.084589]
[1724981318815,0.3608,59106.0,59096.0,0.4299]
[1724981319022,0.3608,59106.0,59096.0,0.514495]
[1724981319520,0.3618,59106.0,59096.0,0.514495]
[1724981320227,0.446381,59106.0,59096.0,0.514495]
[1724981320729,0.243742,59105.0,59096.0,0.514495]
[1724981321614,0.084584,59104.0,59096.0,0.514495]
[1724981321813,0.084584,59104.0,59096.0,0.4299]
[1724981322026,0.15916,59103.0,59096.0,0.4299]
[1724981322318,0.084602,59091.0,59090.0,0.00088]
[1724981322623,0.084602,59091.0,59078.0,0.23630793]
[1724981322624,0.6508,59091.0,59078.0,0.23630793]
[1724981322819,0.3608,59084.0,59078.0,0.23630793]
[1724981323331,0.3608,59084.0,59074.0,0.519826]
[1724981323332,0.15916,59083.0,59074.0,0.519826]
[1724981323511,0.3608,59084.0,59074.0,0.519826]
[1724981323712,0.3608,59084.0,59074.0,0.4352]
[1724981323713,0.15916,59083.0,59074.0,0.4352]
[1724981323915,0.29,59102.0,59082.0,0.6508]
[1724981324220,0.29,59102.0,59082.0,0.3608]
[1724981324221,0.084608,59087.0,59082.0,0.3608]
[1724981324824,0.37461,59086.0,59074.0,0.3608]
[1724981325123,0.001,59084.0,59079.0,0.3608]
[1724981325428,0.001,59084.0,59082.0,0.084615]
[1724981325618,0.0039,59094.0,59089.0,0.084604]
[1724981325819,0.08484866,59096.0,59093.0,0.3608]
[1724981326127,0.00025366,59096.0,59093.0,0.445399]
[1724981326426,0.29596004,59101.0,59093.0,0.3608]
[1724981327016,0.02169901,59101.0,59094.0,0.084597]
[1724981327221,0.02169901,59101.0,59093.0,0.3608]
[1724981327222,0.084594,59097.0,59093.0,0.3608]
[1724981327718,0.084595,59096.0,59093.0,0.3608]
[1724981327914,0.01295775,59103.0,59093.0,0.3608]
[1724981328122,0.00025387,59103.0,59100.0,0.3608]
[1724981328614,0.169196,59094.0,59092.0,0.00025387]
[1724981328815,0.01270397,59100.0,59092.0,0.00025387]
[1724981329131,0.00173388,59103.0,59100.0,0.084589]
[1724981329328,0.00025387,59103.0,59100.0,0.084589]
[1724981329539,0.00025387,59103.0,59097.0,0.3608]
[1724981329734,0.00425387,59103.0,59097.0,0.3608]
[1724981330026,0.00425387,59103.0,59097.0,0.445393]
[1724981330223,0.00425387,59103.0,59098.0,0.084591]
[1724981330419,0.00425387,59103.0,59101.0,0.084587]
[1724981330722,0.00425387,59103.0,59102.0,0.3608]
[1724981331825,0.00125387,59103.0,59102.0,0.3608]
[1724981333227,0.00525387,59103.0,59102.0,0.3608]
[1724981333621,0.00525387,59103.0,59092.0,0.36105387]
[1724981333622,0.87365387,59103.0,59092.0,0.36105387]
[1724981333825,0.36605387,59103.0,59092.0,0.36105387]
[1724981334020,0.084587,59102.0,59096.0,0.084593]
[1724981334321,0.3608,59101.0,59093.0,3.77]
[1724981334631,0.084591,59099.0,59092.0,0.44565487]
[1724981334926,0.084598,59094.0,59092.0,0.36105387]
[1724981336532,0.084599,59093.0,59092.0,0.00025387]
[1724981338636,0.445399,59093.0,59092.0,0.00025387]
[1724981338829,0.450399,59093.0,59092.0,0.00025387]
[1724981340837,0.958079,59093.0,59092.0,0.00025387]
[1724981341029,2.097277,59093.0,59092.0,8.7e-07]
[1724981341235,2.18914553,59093.0,59092.0,8.7e-07]
[1724981341740,2.19014553,59093.0,59092.0,8.7e-07]
[1724981342339,2.21199876,59093.0,59092.0,8.7e-07]
[1724981342636,2.05623876,59093.0,59092.0,8.7e-07]
[1724981342837,2.22003876,59093.0,59092.0,8.7e-07]
[1724981343636,2.13543976,59093.0,59092.0,8.7e-07]
[1724981343844,2.04982741,59093.0,59092.0,8.7e-07]
[1724981344038,1.84362741,59093.0,59092.0,8.7e-07]
[1724981344237,2.22003876,59093.0,59092.0,8.7e-07]
[1724981345037,2.13543976,59093.0,59092.0,8.7e-07]
[1724981345941,1.00163976,59093.0,59092.0,8.7e-07]
[1724981346131,1.75273223,59093.0,59092.0,8.7e-07]
[1724981346332,1.15273223,59093.0,59092.0,8.7e-07]
[1724981346539,1.75273223,59093.0,59092.0,8.7e-07]
[1724981347039,1.76543912,59093.0,59092.0,8.7e-07]
[1724981347342,1.16543912,59093.0,59092.0,8.7e-07]
[1724981347740,0.39665323,59093.0,59092.0,8.7e-07]
[1724981349036,0.39665323,59093.0,59092.0,0.08460187]
[1724981349235,0.014,59093.0,59092.0,0.08460187]
[1724981351043,0.014,59093.0,59092.0,1.55308187]
[1724981352544,0.02198963,59100.0,59099.0,0.084591]
[1724981352743,0.00025387,59103.0,59102.0,0.084586]
[1724981353349,0.021756,59103.0,59102.0,0.084586]
[1724981353847,0.1654222,59103.0,59102.0,0.084586]
[1724981354445,0.07846336,59103.0,59102.0,0.084586]
[1724981355250,0.1654222,59103.0,59102.0,0.084586]
[1724981355549,0.1744222,59103.0,59102.0,1.192186]
[1724981355947,0.1744222,59103.0,59102.0,0.592186]
[1724981356448,0.1744222,59103.0,59102.0,0.084586]
[1724981357754,0.05184843,59103.0,59102.0,1.192186]
[1724981358352,0.3608,59121.0,59113.0,0.29]
[1724981358654,0.084558,59122.0,59118.0,0.084563]
[1724981358655,0.00025387,59120.0,59118.0,0.084563]
[1724981358855,0.16511453,59119.0,59118.0,0.084563]
[1724981359042,0.16511453,59119.0,59115.0,0.3608]
[1724981359242,0.16511453,59118.0,59115.0,0.3608]
[1724981359452,0.16511453,59117.0,59115.0,0.3608]
[1724981359637,0.17911453,59116.0,59115.0,0.445368]
[1724981360956,0.014,59116.0,59115.0,0.445368]
[1724981361253,0.014,59118.0,59115.0,0.446368]
[1724981361851,0.084562,59119.0,59115.0,0.445368]
[1724981362049,0.009,59116.0,59115.0,0.001]
[1724981362346,0.454366,59116.0,59115.0,0.001]
[1724981362649,0.084574,59111.0,59109.0,0.36105387]
[1724981365452,0.084574,59111.0,59109.0,0.00025387]
[1724981366050,0.098574,59111.0,59109.0,0.00125387]
[1724981367156,0.084575,59110.0,59109.0,0.00125387]
[1724981368557,0.098575,59110.0,59109.0,0.00125387]
[1724981371556,0.014,59110.0,59109.0,0.00125387]
[1724981371763,0.014,59110.0,59109.0,0.59334987]
[1724981372257,0.014,59110.0,59109.0,0.67792587]
[1724981372459,0.014,59110.0,59109.0,1.27792587]
[1724981373069,0.00025387,59120.0,59119.0,0.084562]
[1724981373260,0.00025387,59120.0,59119.0,0.445362]
[1724981373462,0.00025387,59120.0,59119.0,0.952802]
[1724981374158,0.00025387,59120.0,59119.0,1.552802]
[1724981374459,0.01425387,59120.0,59119.0,1.553802]
[1724981374655,0.01425387,59120.0,59119.0,0.446362]
[1724981374854,0.01425387,59120.0,59119.0,0.953802]
[1724981375061,0.01425387,59120.0,59119.0,0.446362]
[1724981377258,0.1653684,59120.0,59119.0,0.445362]
[1724981377461,0.1653684,59120.0,59119.0,0.452362]
[1724981378761,0.1653684,59120.0,59119.0,1.559802]
[1724981378961,0.1653684,59120.0,59119.0,1.026902]
[1724981379757,0.1653684,59120.0,59119.0,1.624902]
[1724981380863,0.1653684,59120.0,59119.0,1.019902]
[1724981381065,0.1653684,59120.0,59119.0,0.958802]
[1724981381655,0.1653684,59120.0,59119.0,0.451362]
[1724981382071,0.1653684,59120.0,59119.0,0.958802]
[1724981382469,0.26979709,59120.0,59119.0,0.22618912]
[1724981382664,0.1653684,59120.0,59119.0,0.22618912]
[1724981383561,0.1653684,59120.0,59119.0,0.31075112]
[1724981383869,0.1653684,59120.0,59119.0,0.22618912]
[1724981383870,0.00025387,59120.0,59119.0,0.22618912]
[1724981384673,0.08481487,59120.0,59119.0,0.22618912]
[1724981386368,0.00140001,59125.0,59119.0,1.41819112]
[1724981386556,0.0039,59133.0,59127.0,0.084551]
[1724981386764,0.4389,59144.0,59124.0,0.6508]
[1724981386765,0.084535,59138.0,59124.0,0.6508]
[1724981387079,0.084536,59137.0,59131.0,0.084545]
[1724981387455,0.3608,59132.0,59128.0,0.00025365]
[1724981387658,0.084548,59129.0,59128.0,0.00025365]
[1724981388281,0.0733,59130.0,59128.0,0.00025365]
[1724981388460,0.0735,59131.0,59128.0,0.00025365]
[1724981389670,0.084546,59130.0,59128.0,0.00025365]
[1724981389866,0.152946,59130.0,59128.0,0.00025365]
[1724981390870,0.153946,59130.0,59128.0,0.00025365]
[1724981391879,0.084548,59129.0,59128.0,0.00025365]
[1724981392970,0.085548,59129.0,59128.0,0.00025365]
[1724981396270,0.155348,59129.0,59128.0,0.00025365]
[1724981396475,0.23353021,59129.0,59128.0,0.00025365]
[1724981396874,0.07918221,59129.0,59128.0,0.00025365]
[1724981398375,0.43998221,59129.0,59128.0,0.00025365]
[1724981398770,0.3618,59129.0,59128.0,0.00025365]
[1724981400981,0.446348,59129.0,59128.0,0.00025365]
[1724981402576,0.084565,59117.0,59113.0,0.23630793]
[1724981402876,0.084565,59117.0,59111.0,0.0039]
[1724981402877,0.154467,59116.0,59111.0,0.084572]
[1724981403383,0.084568,59115.0,59111.0,0.084572]
[1724981404963,0.084568,59115.0,59113.0,0.012]
[1724981405168,0.01269735,59117.0,59114.0,0.29]
[1724981405378,0.3608,59118.0,59114.0,0.29]
[1724981405772,0.38240543,59118.0,59114.0,0.29]
[1724981406078,0.38240543,59118.0,59111.0,0.014]
[1724981406384,0.38240543,59118.0,59115.0,0.084567]
[1724981409276,0.38240543,59118.0,59111.0,0.014]
[1724981409575,0.38240543,59118.0,59110.0,0.084574]
[1724981409576,0.3608,59112.0,59110.0,0.084574]
[1724981409777,0.3508,59112.0,59110.0,0.084574]
[1724981410581,0.435372,59112.0,59111.0,0.014]
[1724981411781,0.45686242,59112.0,59111.0,0.014]
[1724981411982,0.084576,59110.0,59107.0,0.00025365]
[1724981412169,0.070576,59110.0,59107.0,0.00025365]
[1724981412876,0.057576,59110.0,59107.0,0.00025365]
[1724981413286,0.084577,59109.0,59107.0,0.00025365]
[1724981413675,0.084577,59109.0,59107.0,0.00825365]
[1724981413982,0.084578,59108.0,59107.0,0.00825365]
[1724981415177,0.084578,59108.0,59107.0,0.00025365]
[1724981416083,0.085578,59108.0,59107.0,0.00025365]
[1724981416282,0.001,59108.0,59107.0,0.44563265]
[1724981425496,0.001,59108.0,59107.0,1.55319265]
[1724981425694,3.5e-07,59108.0,59107.0,1.72235065]
[1724981425990,0.01269735,59125.0,59118.0,0.084563]
[1724981426195,0.3608,59127.0,59118.0,0.735363]
[1724981426196,0.02180183,59124.0,59118.0,0.735363]
[1724981426989,0.02180183,59124.0,59118.0,1.242803]
[1724981427594,0.02180183,59124.0,59118.0,0.735363]
[1724981428190,0.00125365,59119.0,59118.0,0.735363]
[1724981429490,0.08581565,59119.0,59118.0,0.3608]
[1724981429885,0.084569,59114.0,59111.0,0.084572]
[1724981430298,0.3608,59114.0,59107.0,0.36105365]
[1724981430598,0.19388492,59114.0,59107.0,0.44563265]
[1724981430795,0.084573,59112.0,59108.0,0.084577]
[1724981431503,0.17150532,59112.0,59108.0,0.084577]
[1724981431703,0.084573,59112.0,59108.0,0.084577]
[1724981431906,0.08693232,59112.0,59111.0,0.084573]
[1724981432195,0.08793232,59112.0,59111.0,0.084573]
[1724981434615,0.001,59112.0,59111.0,1.192093]
[1724981435203,0.00025365,59119.0,59118.0,0.084563]
[1724981435408,0.00025365,59119.0,59118.0,0.735363]
[1724981437306,0.00125365,59119.0,59118.0,0.735363]
[1724981438012,0.00125365,59119.0,59118.0,1.927366]
[1724981438013,6.5e-07,59119.0,59118.0,1.927366]
[1724981438210,6.5e-07,59119.0,59118.0,5.697366]
[1724981440013,0.00025365,59124.0,59123.0,0.169112]
[1724981440014,3e-07,59124.0,59123.0,0.169112]
[1724981440201,3e-07,59124.0,59123.0,0.819912]
[1724981440398,3e-07,59124.0,59123.0,1.927312]
[1724981441608,0.0039,59137.0,59136.0,0.374538]
[1724981441813,0.155918,59150.0,59136.0,1.0116]
[1724981442011,0.17801557,59150.0,59148.0,0.3608]
[1724981444011,0.55207414,59149.0,59143.0,0.00025365]
[1724981444310,0.3608,59144.0,59143.0,0.00025365]
[1724981444516,0.84207414,59144.0,59143.0,0.0002132]
[1724981444716,1.96201149,59144.0,59126.0,0.0039]
[1724981444905,0.084544,59132.0,59124.0,0.3608]
[1724981445213,0.32647414,59131.0,59124.0,0.3608]
[1724981445418,0.08689111,59130.0,59124.0,0.3608]
[1724981445718,0.08689111,59129.0,59124.0,0.445355]
[1724981446014,0.08689111,59128.0,59126.0,0.084552]
[1724981446215,0.08689111,59127.0,59126.0,0.084552]
[1724981447715,0.1362,59131.0,59127.0,0.08455]
[1724981448023,0.00025365,59133.0,59126.0,0.291]
[1724981448322,0.00025365,59133.0,59132.0,1.552663]
[1724981448617,0.10438303,59142.0,59141.0,0.084531]
[1724981448816,0.19127368,59142.0,59141.0,0.735331]
[1724981449012,0.08689065,59142.0,59141.0,0.735331]
[1724981449526,0.19127368,59142.0,59141.0,0.735331]
[1724981450911,0.00025365,59147.0,59146.0,0.084523]
[1724981451125,0.00025365,59147.0,59146.0,0.735323]
[1724981452513,0.0215952,59155.0,59146.0,1.842523]
[1724981452707,0.01269262,59163.0,59160.0,0.084502]
[1724981452913,0.02169477,59165.0,59160.0,0.6508]
[1724981453115,0.1324,59168.0,59164.0,0.29]
[1724981453312,0.15370516,59168.0,59165.0,0.084496]
[1724981453525,0.1324,59168.0,59166.0,0.084494]
[1724981455224,0.1324,59168.0,59166.0,0.085494]
[1724981455225,0.1464,59168.0,59166.0,0.085494]
[1724981455821,0.1464,59168.0,59166.0,0.001]
[1724981456120,0.50704,59167.0,59166.0,0.001]
[1724981456312,1.10704,59167.0,59166.0,0.001]
[1724981456511,0.9006197,59167.0,59166.0,0.001]
[1724981457118,0.084501,59162.0,59161.0,0.00025365]
[1724981457617,1.552381,59162.0,59161.0,0.00025365]
[1724981458324,1.561381,59162.0,59161.0,0.00125365]
[1724981459827,0.961381,59162.0,59161.0,0.00125365]
[1724981460026,0.454301,59162.0,59161.0,0.00125365]
[1724981460228,0.3698,59162.0,59161.0,0.00125365]
[1724981460618,0.3698,59162.0,59161.0,0.29217595]
[1724981461116,0.009,59162.0,59161.0,0.65297595]
[1724981461316,0.009,59162.0,59161.0,0.20767395]
[1724981461528,0.093501,59162.0,59161.0,0.20767395]
[1724981463027,0.600581,59162.0,59161.0,0.00125365]
[1724981464119,0.009,59162.0,59161.0,0.20767395]
[1724981464644,0.009,59162.0,59161.0,0.29217595]
[1724981465217,0.009,59162.0,59161.0,0.20767395]
[1724981466029,0.09589065,59162.0,59161.0,0.12182656]
[1724981466328,0.18039165,59162.0,59161.0,0.12182656]
[1724981466719,0.18039165,59162.0,59161.0,0.10375948]
[1724981466936,0.20024791,59162.0,59153.0,0.3608]
[1724981467126,0.084505,59159.0,59158.0,0.10375948]
[1724981467328,0.63655291,59159.0,59158.0,0.10375948]
[1724981467536,0.55204791,59159.0,59153.0,0.36105365]
[1724981467725,0.19124791,59158.0,59157.0,0.10375948]
[1724981468120,0.08689065,59158.0,59157.0,0.10375948]
[1724981468532,0.17139665,59158.0,59157.0,0.10375948]
[1724981468829,0.27575391,59158.0,59157.0,0.10375948]
[1724981469032,0.27575391,59158.0,59153.0,0.44176243]
[1724981469228,0.19124791,59157.0,59156.0,0.29]
[1724981469426,0.19124791,59157.0,59156.0,0.374509]
[1724981469825,0.08689065,59157.0,59156.0,0.374509]
[1724981470228,0.19124791,59157.0,59156.0,0.374509]
[1724981470734,0.08689065,59157.0,59156.0,0.374509]